[Event "European Online Club-ch-I 2021"]
[Site "Online"]
[Date "2021.03.27"]
[Round "1.10"]
[White "Bulockin, Martin"]
[Black "Heberla, Bartlomiej"]
[Result "0-1"]
[ECO "C68"]
[WhiteElo "2315"]
[BlackElo "2556"]
[Annotator "ChessBase"]
[PlyCount "96"]
[EventDate "2021.03.27"]
[EventType "team-tourn"]
[EventCountry "NET"]
[SourceTitle "playchess.com"]
[Source "ChessBase"]
[SourceQuality "1"]
[TimeControl "900+5"]

1. e4 {[%emt 0:00:00]} e5 {[%emt 0:00:03]} 2. Nf3 {[%emt 0:00:04]} Nc6 {[%emt 0:00:03]} 3. Bb5 {[%emt 0:00:06]} a6 {[%emt 0:00:02]} 4. Bxc6 {[%emt 0:00:06]} dxc6 {[%emt 0:00:02]} 5. d3 {[%emt 0:00:05]} f6 {[%emt 0:00:19]} 6. h3 {[%emt 0:00:10]} Ne7 {[%emt 0:00:02]} 7. Be3 {[%emt 0:00:32]} Ng6 {[%emt 0:00:03]} 8. Nbd2 {[%emt 0:00:11]} c5 {[%emt 0:00:23]} 9. Qe2 {[%emt 0:01:27]} Be7 {[%emt 0:00:13]} 10. O-O {[%emt 0:00:36]} O-O {[%emt 0:00:02]} 11. a3 {[%emt 0:00:21]} Be6 {[%emt 0:00:13]} 12. Rfb1 {[%emt 0:00:15]} a5 {[%emt 0:00:14]} 13. Nf1 {[%emt 0:01:09]} a4 {[%emt 0:00:28]} 14. Ng3 {[%emt 0:00:10]} Qd7 {[%emt 0:00:03]} 15. Rd1 {[%emt 0:00:18]} Rfd8 {[%emt 0:00:15]} 16. Rd2 {[%emt 0:00:07]} Qb5 {[%emt 0:00:14]} 17. c3 {[%emt 0:00:17]} Bf8 {[%emt 0:00:12]} 18. Rc1 {[%emt 0:00:08]} Rd7 {[%emt 0:00:58]} 19. d4 {[%emt 0:00:49]} Bc4 {[%emt 0:00:08]} 20. Qe1 {[%emt 0:00:08]} cxd4 {[%emt 0:02:27]} 21. cxd4 {[%emt 0:00:03]} Rad8 {[%emt 0:00:31]} 22. h4 {[%emt 0:01:32]} Bb3 {[%emt 0:00:21]} 23. h5 {[%emt 0:00:48]} Nf4 {[%emt 0:00:03]} 24. Bxf4 {[%emt 0:02:24]} exf4 {[%emt 0:00:03]} 25. Ne2 {[%emt 0:00:01]} Qxh5 {[%emt 0:00:34]} 26. Nxf4 {[%emt 0:00:03]} Qg4 {[%emt 0:00:12]} 27. Qe3 {[%emt 0:00:13]} Re7 {[%emt 0:00:19]} 28. e5 {[%emt 0:00:38]} g6 {[%emt 0:01:04]} 29. Nd3 {[%emt 0:00:26]} Bd5 {[%emt 0:00:07]} 30. Nde1 {[%emt 0:00:23]} Qh5 {[%emt 0:00:48]} 31. Qc3 {[%emt 0:00:39]} fxe5 {[%emt 0:00:09]} 32. dxe5 {[%emt 0:00:14]} c6 {[%emt 0:00:09]} 33. Rcd1 {[%emt 0:00:10]} Bg7 {[%emt 0:00:20]} 34. Re2 {[%emt 0:00:16]} Rde8 {[%emt 0:00:12]} 35. Qb4 {[%emt 0:00:42]} Bxe5 {[%emt 0:00:39]} 36. Red2 {[%emt 0:00:52]} Bc7 {[%emt 0:00:28]} 37. Qxa4 {[%emt 0:00:50]} b5 {[%emt 0:01:47]} 38. Qb4 {[%emt 0:00:26]} Bc4 {[%emt 0:00:22]} 39. Nc2 {[%emt 0:00:25]} Be2 {[%emt 0:00:51]} 40. Rxe2 {[%emt 0:00:03]} Rxe2 {[%emt 0:00:02]} 41. Ncd4 {[%emt 0:00:04]} R2e4 {[%emt 0:00:23]} 42. Qb3+ {[%emt 0:00:03]} Qd5 {[%emt 0:00:56]} 43. Qxd5+ {[%emt 0:00:03]} cxd5 {[%emt 0:00:02]} 44. Nxb5 {[%emt 0:00:02]} Bb8 {[%emt 0:00:16]} 45. g3 {[%emt 0:00:04]} Re2 {[%emt 0:00:04]} 46. Rxd5 {[%emt 0:00:05]} Rxb2 {[%emt 0:00:09]} 47. Nfd4 {[%emt 0:00:02]} Rf8 {[%emt 0:00:27]} 48. f4 {[%emt 0:00:13]} Rc8 {[%emt 0:00:05]} 0-1

[Event "European Online Club-ch-I 2021"]
[Site "Online"]
[Date "2021.03.27"]
[Round "1.11"]
[White "Polak, Tomas"]
[Black "Mladek, Richard"]
[Result "1-0"]
[ECO "D53"]
[WhiteElo "2553"]
[BlackElo "2291"]
[Annotator "ChessBase"]
[PlyCount "85"]
[EventDate "2021.03.27"]
[EventType "team-tourn"]
[EventCountry "NET"]
[SourceTitle "playchess.com"]
[Source "ChessBase"]
[SourceQuality "1"]
[TimeControl "900+5"]

1. d4 {[%emt 0:00:00]} Nf6 {[%emt 0:00:09]} 2. c4 {[%emt 0:00:03]} e6 {[%emt 0:00:04]} 3. Nf3 {[%emt 0:00:09]} d5 {[%emt 0:00:02]} 4. Nc3 {[%emt 0:00:08]} Be7 {[%emt 0:00:02]} 5. Bg5 {[%emt 0:00:22]} O-O {[%emt 0:00:07]} 6. Qc2 {[%emt 0:00:16]} h6 {[%emt 0:00:13]} 7. h4 {[%emt 0:00:20]} c5 {[%emt 0:00:33]} 8. dxc5 {[%emt 0:01:41]} dxc4 {[%emt 0:02:32]} 9. e3 {[%emt 0:01:21]} Qa5 {[%emt 0:00:43]} 10. Bxc4 {[%emt 0:01:01]} Qxc5 {[%emt 0:00:07]} 11. Bb3 {[%emt 0:01:21]} Nc6 {[%emt 0:00:24]} 12. Bf4 {[%emt 0:01:32]} e5 {[%emt 0:00:28]} 13. Bg3 {[%emt 0:00:09]} Nb4 {[%emt 0:01:31]} 14. Qb1 {[%emt 0:00:52]} e4 {[%emt 0:00:03]} 15. Nxe4 {[%emt 0:00:50]} Nxe4 {[%emt 0:00:47]} 16. Qxe4 {[%emt 0:00:03]} Bf5 {[%emt 0:00:04]} 17. Qd4 {[%emt 0:00:44]} Qb5 {[%emt 0:00:11]} 18. Ne5 {[%emt 0:01:27]} Bf6 {[%emt 0:02:06]} 19. Qc4 {[%emt 0:00:28]} Qa5 {[%emt 0:00:46]} 20. O-O {[%emt 0:00:20]} Bxe5 {[%emt 0:00:31]} 21. Bxe5 {[%emt 0:00:04]} Bd3 {[%emt 0:00:11]} 22. Bc7 {[%emt 0:00:52]} b6 {[%emt 0:00:35]} 23. Qg4 {[%emt 0:00:17]} Bxf1 {[%emt 0:00:10]} 24. Rxf1 {[%emt 0:00:02]} Nd5 {[%emt 0:00:24]} 25. Be5 {[%emt 0:00:09]} f6 {[%emt 0:03:27]} 26. Rd1 {[%emt 0:00:06]} fxe5 {[%emt 0:00:26]} 27. Rxd5 {[%emt 0:01:02]} Qe1+ {[%emt 0:00:04]} 28. Kh2 {[%emt 0:00:02]} Kh8 {[%emt 0:00:00]} 29. Rd7 {[%emt 0:00:10]} Rg8 {[%emt 0:00:04]} 30. Bxg8 {[%emt 0:00:19]} Rxg8 {[%emt 0:00:02]} 31. Kg3 {[%emt 0:00:05]} Qb1 {[%emt 0:00:15]} 32. Rxa7 {[%emt 0:00:07]} Qxb2 {[%emt 0:00:03]} 33. Qd7 {[%emt 0:00:09]} e4 {[%emt 0:00:10]} 34. Qe7 {[%emt 0:00:10]} Qc2 {[%emt 0:00:20]} 35. a4 {[%emt 0:00:06]} Qc8 {[%emt 0:00:09]} 36. Rd7 {[%emt 0:00:07]} Qb8+ {[%emt 0:00:06]} 37. Kh3 {[%emt 0:00:01]} Qc8 {[%emt 0:00:02]} 38. Kh2 {[%emt 0:00:06]} Qb8+ {[%emt 0:00:02]} 39. Qd6 {[%emt 0:00:05]} Qe8 {[%emt 0:00:08]} 40. Qd4 {[%emt 0:00:06]} Qh5 {[%emt 0:00:11]} 41. Qxe4 {[%emt 0:00:10]} Rf8 {[%emt 0:00:02]} 42. f3 {[%emt 0:00:11]} Rf6 {[%emt 0:00:06]} 43. Rd8+ {[%emt 0:00:06]} 1-0

[Event "European Online Club-ch-I 2021"]
[Site "Online"]
[Date "2021.03.27"]
[Round "1.12"]
[White "Sprenar, Petr"]
[Black "Nayhebaver, Martin"]
[Result "0-1"]
[ECO "D00"]
[WhiteElo "2259"]
[BlackElo "2485"]
[Annotator "ChessBase"]
[PlyCount "42"]
[EventDate "2021.03.27"]
[EventType "team-tourn"]
[EventCountry "NET"]
[SourceTitle "playchess.com"]
[Source "ChessBase"]
[SourceQuality "1"]
[TimeControl "900+5"]

1. d4 {[%emt 0:00:00]} Nf6 {[%emt 0:00:05]} 2. Bg5 {[%emt 0:00:11]} d5 {[%emt 0:00:39]} 3. Bxf6 {[%emt 0:00:10]} exf6 {[%emt 0:00:03]} 4. e3 {[%emt 0:00:15]} Be6 {[%emt 0:00:15]} 5. Ne2 {[%emt 0:00:48]} Bd6 {[%emt 0:00:24]} 6. g3 {[%emt 0:00:43]} Nd7 {[%emt 0:00:25]} 7. Bg2 {[%emt 0:00:03]} Nb6 {[%emt 0:00:26]} 8. O-O {[%emt 0:00:11]} h5 {[%emt 0:01:34]} 9. Nf4 {[%emt 0:01:25]} Bxf4 {[%emt 0:04:10]} 10. exf4 {[%emt 0:00:03]} Qd7 {[%emt 0:00:16]} 11. Re1 {[%emt 0:00:32]} O-O-O {[%emt 0:00:45]} 12. a4 {[%emt 0:01:14]} h4 {[%emt 0:01:08]} 13. a5 {[%emt 0:00:24]} Nc4 {[%emt 0:00:10]} 14. b3 {[%emt 0:03:39]} Nd6 {[%emt 0:00:08]} 15. Nc3 {[%emt 0:00:21]} hxg3 {[%emt 0:01:12]} 16. hxg3 {[%emt 0:00:53]} Bh3 {[%emt 0:01:18]} 17. Bxd5 {[%emt 0:01:11]} Nb5 {[%emt 0:00:53]} 18. Qf3 {[%emt 0:02:48]} Nxc3 {[%emt 0:00:25]} 19. Bxb7+ {[%emt 0:00:03]} Kb8 {[%emt 0:00:02]} 20. Ba8 {[%emt 0:01:12]} Nd5 {[%emt 0:00:13]} 21. Re7 {[%emt 0:00:24]} Qxe7 {[%emt 0:00:09]} 0-1

[Event "European Online Club-ch-I 2021"]
[Site "Online"]
[Date "2021.03.27"]
[Round "1.13"]
[White "Iskandarov, Misratdin"]
[Black "Sorensen, Jan"]
[Result "1-0"]
[ECO "C15"]
[WhiteElo "2535"]
[BlackElo "2369"]
[Annotator "ChessBase"]
[PlyCount "71"]
[EventDate "2021.03.27"]
[EventType "team-tourn"]
[EventCountry "NET"]
[SourceTitle "playchess.com"]
[Source "ChessBase"]
[SourceQuality "1"]
[TimeControl "900+5"]

1. e4 {[%emt 0:00:00]} e6 {[%emt 0:00:11]} 2. d4 {[%emt 0:00:13]} d5 {[%emt 0:00:02]} 3. Nc3 {[%emt 0:00:06]} Bb4 {[%emt 0:00:04]} 4. Nge2 {[%emt 0:00:30]} Nc6 {[%emt 0:00:27]} 5. a3 {[%emt 0:01:41]} Ba5 {[%emt 0:00:32]} 6. b4 {[%emt 0:01:54]} Bb6 {[%emt 0:00:04]} 7. e5 {[%emt 0:00:56]} f6 {[%emt 0:00:06]} 8. b5 {[%emt 0:00:18]} Na5 {[%emt 0:00:21]} 9. Ng3 {[%emt 0:01:03]} Nc4 {[%emt 0:01:22]} 10. Bxc4 {[%emt 0:00:23]} dxc4 {[%emt 0:00:02]} 11. Be3 {[%emt 0:00:30]} f5 {[%emt 0:00:30]} 12. O-O {[%emt 0:00:16]} Ne7 {[%emt 0:01:03]} 13. a4 {[%emt 0:02:10]} a6 {[%emt 0:01:22]} 14. a5 {[%emt 0:00:12]} Ba7 {[%emt 0:00:05]} 15. Qe2 {[%emt 0:00:23]} O-O {[%emt 0:00:19]} 16. Nh5 {[%emt 0:00:04]} axb5 {[%emt 0:02:08]} 17. Nxb5 {[%emt 0:00:03]} Nd5 {[%emt 0:00:02]} 18. Nf4 {[%emt 0:00:33]} g5 {[%emt 0:02:12]} 19. Nxd5 {[%emt 0:00:05]} exd5 {[%emt 0:00:03]} 20. e6 {[%emt 0:01:03]} Qe7 {[%emt 0:01:25]} 21. Bc1 {[%emt 0:00:44]} Bb8 {[%emt 0:00:15]} 22. Ba3 {[%emt 0:00:09]} Qxe6 {[%emt 0:00:02]} 23. Qxe6+ {[%emt 0:00:10]} Bxe6 {[%emt 0:00:01]} 24. Bxf8 {[%emt 0:00:01]} Kxf8 {[%emt 0:00:02]} 25. Rfe1 {[%emt 0:00:04]} Bd7 {[%emt 0:00:53]} 26. Nc3 {[%emt 0:00:02]} c6 {[%emt 0:00:02]} 27. Na4 {[%emt 0:00:07]} Bc7 {[%emt 0:00:32]} 28. Nb6 {[%emt 0:00:16]} Rd8 {[%emt 0:00:11]} 29. Nxd7+ {[%emt 0:00:04]} Rxd7 {[%emt 0:00:01]} 30. a6 {[%emt 0:00:03]} bxa6 {[%emt 0:00:16]} 31. Rxa6 {[%emt 0:00:03]} Rd6 {[%emt 0:00:18]} 32. Re5 {[%emt 0:00:49]} Rf6 {[%emt 0:00:27]} 33. Ra8+ {[%emt 0:00:31]} Kg7 {[%emt 0:00:17]} 34. Re7+ {[%emt 0:00:02]} Rf7 {[%emt 0:00:01]} 35. Rxf7+ {[%emt 0:00:02]} Kxf7 {[%emt 0:00:02]} 36. Ra7 {[%emt 0:00:01]} 1-0

[Event "European Online Club-ch-I 2021"]
[Site "Online"]
[Date "2021.03.27"]
[Round "1.14"]
[White "Vinter-Schou, Uffe"]
[Black "Muradli, Mahammad"]
[Result "0-1"]
[ECO "B52"]
[WhiteElo "2320"]
[BlackElo "2449"]
[Annotator "NA"]
[PlyCount "78"]
[EventDate "2021.03.27"]
[EventType "team-tourn"]
[EventCountry "NET"]
[SourceTitle "playchess.com"]
[Source "ChessBase"]
[SourceQuality "1"]
[TimeControl "900+5"]

1. e4 {[%emt 0:00:00]} c5 {[%emt 0:00:03]} 2. Nf3 {[%emt 0:00:05]} d6 {[%emt 0:00:03]} 3. Bb5+ {[%emt 0:00:01]} Bd7 {[%emt 0:00:02]} 4. Bxd7+ {[%emt 0:00:03]} Qxd7 {[%emt 0:00:02]} 5. O-O {[%emt 0:00:02]} Nf6 {[%emt 0:00:02]} 6. Qe2 {[%emt 0:00:02]} Nc6 {[%emt 0:00:07]} 7. b3 {[%emt 0:00:02]} g6 {[%emt 0:00:28]} 8. Bb2 {[%emt 0:00:03]} Bg7 {[%emt 0:00:02]} 9. c4 {[%emt 0:00:21]} e5 {[%emt 0:01:49]} 10. Nc3 {[%emt 0:00:08]} O-O {[%emt 0:00:04]} 11. Nd5 {[%emt 0:00:10]} Nxd5 {[%emt 0:00:20]} 12. cxd5 {[%emt 0:00:07]} Ne7 {[%emt 0:00:40]} 13. h3 {[%emt 0:00:44]} h6 {[%emt 0:04:01]} 14. d3 {[%emt 0:00:05]} f5 {[%emt 0:00:07]} 15. Nd2 {[%emt 0:00:03]} Kh7 {[%emt 0:00:07]} 16. a4 {[%emt 0:03:08]} g5 {[%emt 0:00:18]} 17. Nc4 {[%emt 0:00:18]} Ng6 {[%emt 0:00:15]} 18. exf5 {[%emt 0:00:18]} Rxf5 {[%emt 0:00:05]} 19. Qg4 {[%emt 0:00:10]} Raf8 {[%emt 0:00:19]} 20. g3 {[%emt 0:00:52]} Qd8 {[%emt 0:01:25]} 21. Rae1 {[%emt 0:00:21]} Rf3 {[%emt 0:00:46]} 22. Re3 {[%emt 0:00:16]} R3f6 {[%emt 0:00:08]} 23. Bc3 {[%emt 0:00:46]} Kh8 {[%emt 0:00:28]} 24. Nd2 {[%emt 0:00:58]} Ne7 {[%emt 0:00:16]} 25. Qc4 {[%emt 0:00:29]} b6 {[%emt 0:00:19]} 26. b4 {[%emt 0:00:19]} Qa8 {[%emt 0:00:06]} 27. bxc5 {[%emt 0:00:18]} Nxd5 {[%emt 0:00:27]} 28. Re2 {[%emt 0:00:05]} bxc5 {[%emt 0:01:29]} 29. Ne4 {[%emt 0:00:06]} Rg6 {[%emt 0:00:02]} 30. Rb1 {[%emt 0:00:12]} Qc6 {[%emt 0:00:33]} 31. Reb2 {[%emt 0:00:25]} Nb6 {[%emt 0:00:21]} 32. Qa6 {[%emt 0:00:08]} d5 {[%emt 0:00:08]} 33. Nd2 {[%emt 0:00:16]} Nxa4 {[%emt 0:00:10]} 34. Qxc6 {[%emt 0:00:25]} Rxc6 {[%emt 0:00:02]} 35. Rb3 {[%emt 0:00:00]} Nxc3 {[%emt 0:00:02]} 36. Rxc3 {[%emt 0:00:03]} e4 {[%emt 0:00:02]} 37. Ra3 {[%emt 0:00:08]} Bd4 {[%emt 0:00:02]} 38. Nb3 {[%emt 0:00:25]} Bxf2+ {[%emt 0:00:02]} 39. Kg2 {[%emt 0:00:02]} exd3 {[%emt 0:00:09]} 0-1

[Event "European Online Club-ch-I 2021"]
[Site "Online"]
[Date "2021.03.27"]
[Round "1.15"]
[White "Shahaliyev, Ismayil"]
[Black "Boe, Mads"]
[Result "1-0"]
[ECO "B10"]
[WhiteElo "2413"]
[BlackElo "2250"]
[Annotator "NA"]
[PlyCount "117"]
[EventDate "2021.03.27"]
[EventType "team-tourn"]
[EventCountry "NET"]
[SourceTitle "playchess.com"]
[Source "ChessBase"]
[SourceQuality "1"]
[TimeControl "900+5"]

1. e4 {[%emt 0:00:00]} c6 {[%emt 0:00:07]} 2. d3 {[%emt 0:00:06]} d5 {[%emt 0:00:02]} 3. Nd2 {[%emt 0:00:02]} Nf6 {[%emt 0:00:08]} 4. Ngf3 {[%emt 0:00:07]} Bg4 {[%emt 0:00:05]} 5. Be2 {[%emt 0:00:07]} e6 {[%emt 0:00:02]} 6. O-O {[%emt 0:00:17]} Be7 {[%emt 0:00:08]} 7. b3 {[%emt 0:00:07]} O-O {[%emt 0:00:04]} 8. Bb2 {[%emt 0:00:02]} a5 {[%emt 0:00:07]} 9. a3 {[%emt 0:00:09]} Bh5 {[%emt 0:00:26]} 10. Re1 {[%emt 0:00:34]} Na6 {[%emt 0:00:37]} 11. e5 {[%emt 0:00:19]} Nd7 {[%emt 0:00:05]} 12. d4 {[%emt 0:00:01]} Bg6 {[%emt 0:00:07]} 13. c4 {[%emt 0:00:27]} Nc7 {[%emt 0:00:41]} 14. Nf1 {[%emt 0:00:28]} a4 {[%emt 0:00:06]} 15. Ne3 {[%emt 0:01:16]} axb3 {[%emt 0:01:25]} 16. Qxb3 {[%emt 0:00:05]} b5 {[%emt 0:00:46]} 17. cxd5 {[%emt 0:00:53]} cxd5 {[%emt 0:00:08]} 18. Rec1 {[%emt 0:00:26]} Nb6 {[%emt 0:00:06]} 19. Bxb5 {[%emt 0:01:14]} Nxb5 {[%emt 0:00:05]} 20. Qxb5 {[%emt 0:00:04]} Na4 {[%emt 0:00:11]} 21. Bc3 {[%emt 0:00:17]} Nxc3 {[%emt 0:00:15]} 22. Rxc3 {[%emt 0:00:04]} Qa5 {[%emt 0:00:35]} 23. Qxa5 {[%emt 0:02:46]} Rxa5 {[%emt 0:00:05]} 24. Ne1 {[%emt 0:00:03]} Rb8 {[%emt 0:00:51]} 25. Nd3 {[%emt 0:02:20]} h6 {[%emt 0:02:02]} 26. Kf1 {[%emt 0:00:42]} Rba8 {[%emt 0:00:23]} 27. Nc2 {[%emt 0:00:09]} Ra4 {[%emt 0:00:13]} 28. Ke2 {[%emt 0:00:29]} Rc4 {[%emt 0:00:38]} 29. Rxc4 {[%emt 0:01:12]} dxc4 {[%emt 0:00:03]} 30. Ndb4 {[%emt 0:00:05]} f6 {[%emt 0:00:55]} 31. Rc1 {[%emt 0:01:05]} Kf7 {[%emt 0:02:32]} 32. g3 {[%emt 0:01:10]} Ra4 {[%emt 0:01:18]} 33. h4 {[%emt 0:00:10]} h5 {[%emt 0:00:35]} 34. Kd2 {[%emt 0:00:15]} Be4 {[%emt 0:00:37]} 35. Kc3 {[%emt 0:00:12]} Bd5 {[%emt 0:00:09]} 36. Ra1 {[%emt 0:00:02]} fxe5 {[%emt 0:00:35]} 37. dxe5 {[%emt 0:00:03]} Bc5 {[%emt 0:00:03]} 38. f4 {[%emt 0:00:07]} Kg6 {[%emt 0:00:02]} 39. Nxd5 {[%emt 0:00:06]} exd5 {[%emt 0:00:02]} 40. Nd4 {[%emt 0:00:01]} Bxa3 {[%emt 0:00:48]} 41. f5+ {[%emt 0:00:03]} Kf7 {[%emt 0:00:03]} 42. Kc2 {[%emt 0:00:01]} Ra5 {[%emt 0:00:11]} 43. Nc6 {[%emt 0:00:07]} Rc5 {[%emt 0:00:06]} 44. Nd8+ {[%emt 0:00:14]} Ke8 {[%emt 0:00:02]} 45. Rxa3 {[%emt 0:00:04]} Kxd8 {[%emt 0:00:02]} 46. Kc3 {[%emt 0:00:01]} Rc7 {[%emt 0:00:04]} 47. Ra5 {[%emt 0:00:07]} Rd7 {[%emt 0:00:04]} 48. Kd4 {[%emt 0:00:02]} Ke7 {[%emt 0:00:02]} 49. Ra6 {[%emt 0:00:06]} Kf8 {[%emt 0:00:05]} 50. e6 {[%emt 0:00:04]} Rd8 {[%emt 0:00:02]} 51. Ra7 {[%emt 0:00:02]} Kg8 {[%emt 0:00:12]} 52. Rc7 {[%emt 0:00:01]} Rf8 {[%emt 0:00:12]} 53. Ke5 {[%emt 0:00:04]} Rd8 {[%emt 0:00:05]} 54. Kd4 {[%emt 0:00:13]} Rf8 {[%emt 0:00:03]} 55. Kxd5 {[%emt 0:00:06]} Rxf5+ {[%emt 0:00:07]} 56. Kd6 {[%emt 0:00:01]} Rf8 {[%emt 0:00:06]} 57. Rxc4 {[%emt 0:00:10]} Ra8 {[%emt 0:00:03]} 58. Kd7 {[%emt 0:00:04]} Ra7+ {[%emt 0:00:02]} 59. Rc7 {[%emt 0:00:05]} 1-0

[Event "European Online Club-ch-I 2021"]
[Site "Online"]
[Date "2021.03.27"]
[Round "1.16"]
[White "Rendboe, John Filip"]
[Black "Bashirli, Nail"]
[Result "0-1"]
[ECO "E50"]
[WhiteElo "2169"]
[BlackElo "2382"]
[Annotator "NA"]
[PlyCount "88"]
[EventDate "2021.03.27"]
[EventType "team-tourn"]
[EventCountry "NET"]
[SourceTitle "playchess.com"]
[Source "ChessBase"]
[SourceQuality "1"]
[TimeControl "900+5"]

1. d4 {[%emt 0:00:00]} Nf6 {[%emt 0:00:10]} 2. c4 {[%emt 0:00:04]} e6 {[%emt 0:00:02]} 3. Nc3 {[%emt 0:00:04]} Bb4 {[%emt 0:00:02]} 4. e3 {[%emt 0:00:06]} O-O {[%emt 0:00:07]} 5. Bd3 {[%emt 0:00:08]} c5 {[%emt 0:00:02]} 6. Nf3 {[%emt 0:00:12]} d6 {[%emt 0:00:19]} 7. O-O {[%emt 0:00:07]} Bxc3 {[%emt 0:00:02]} 8. bxc3 {[%emt 0:00:03]} Nbd7 {[%emt 0:00:27]} 9. Nd2 {[%emt 0:00:36]} b6 {[%emt 0:00:16]} 10. e4 {[%emt 0:00:10]} e5 {[%emt 0:00:19]} 11. d5 {[%emt 0:00:41]} h6 {[%emt 0:00:12]} 12. a4 {[%emt 0:00:08]} a6 {[%emt 0:01:20]} 13. a5 {[%emt 0:00:30]} b5 {[%emt 0:00:07]} 14. cxb5 {[%emt 0:00:05]} axb5 {[%emt 0:00:03]} 15. Bxb5 {[%emt 0:00:04]} Rxa5 {[%emt 0:00:03]} 16. Rxa5 {[%emt 0:01:03]} Qxa5 {[%emt 0:00:04]} 17. c4 {[%emt 0:00:03]} Ba6 {[%emt 0:00:17]} 18. Nb3 {[%emt 0:00:15]} Qa2 {[%emt 0:00:37]} 19. Bxa6 {[%emt 0:00:46]} Qxa6 {[%emt 0:00:04]} 20. Qd3 {[%emt 0:00:22]} Rb8 {[%emt 0:00:06]} 21. Nd2 {[%emt 0:01:06]} Qa2 {[%emt 0:00:34]} 22. g3 {[%emt 0:00:21]} Nb6 {[%emt 0:01:39]} 23. f4 {[%emt 0:00:18]} Nfd7 {[%emt 0:00:02]} 24. Qa3 {[%emt 0:01:30]} Ra8 {[%emt 0:01:42]} 25. Qd3 {[%emt 0:03:31]} Ra4 {[%emt 0:00:18]} 26. Nb3 {[%emt 0:00:34]} Rb4 {[%emt 0:00:57]} 27. Nd2 {[%emt 0:00:42]} Nxc4 {[%emt 0:00:06]} 28. Nf3 {[%emt 0:00:52]} Qb3 {[%emt 0:00:30]} 29. Qe2 {[%emt 0:00:14]} Qc3 {[%emt 0:00:03]} 30. fxe5 {[%emt 0:00:40]} Ncxe5 {[%emt 0:00:34]} 31. Nh4 {[%emt 0:00:21]} Qd4+ {[%emt 0:00:07]} 32. Kh1 {[%emt 0:00:21]} Qxe4+ {[%emt 0:00:36]} 33. Qxe4 {[%emt 0:00:03]} Rxe4 {[%emt 0:00:02]} 34. Nf5 {[%emt 0:00:02]} Nc4 {[%emt 0:00:01]} 35. Bf4 {[%emt 0:00:08]} Nf6 {[%emt 0:00:44]} 36. Bxd6 {[%emt 0:00:21]} Nxd6 {[%emt 0:00:42]} 37. Nxd6 {[%emt 0:00:03]} Re5 {[%emt 0:00:08]} 38. Nf5 {[%emt 0:00:20]} Nxd5 {[%emt 0:00:06]} 39. g4 {[%emt 0:00:10]} c4 {[%emt 0:00:50]} 40. Nd6 {[%emt 0:00:09]} c3 {[%emt 0:00:19]} 41. Nxf7 {[%emt 0:00:06]} Re2 {[%emt 0:00:31]} 42. Nd6 {[%emt 0:00:31]} Ne3 {[%emt 0:00:03]} 43. Rc1 {[%emt 0:00:08]} c2 {[%emt 0:00:03]} 44. Nb5 {[%emt 0:00:15]} Rd2 {[%emt 0:00:04]} 0-1

[Event "European Online Club-ch-I 2021"]
[Site "Online"]
[Date "2021.03.27"]
[Round "1.17"]
[White "Batsiashvili, Nino"]
[Black "Arnaudov, G. Petar"]
[Result "1/2-1/2"]
[ECO "D02"]
[WhiteElo "2491"]
[BlackElo "2471"]
[Annotator "ChessBase"]
[PlyCount "79"]
[EventDate "2021.03.27"]
[EventType "team-tourn"]
[EventCountry "NET"]
[SourceTitle "playchess.com"]
[Source "ChessBase"]
[SourceQuality "1"]
[TimeControl "900+5"]

1. d4 {[%emt 0:00:00]} Nf6 {[%emt 0:00:04]} 2. Nf3 {[%emt 0:00:12]} e6 {[%emt 0:00:28]} 3. Bf4 {[%emt 0:00:05]} d5 {[%emt 0:00:14]} 4. e3 {[%emt 0:00:13]} Bd6 {[%emt 0:00:05]} 5. Bg3 {[%emt 0:00:08]} O-O {[%emt 0:00:04]} 6. Bd3 {[%emt 0:00:17]} c5 {[%emt 0:00:05]} 7. c3 {[%emt 0:00:03]} Qc7 {[%emt 0:00:03]} 8. Nbd2 {[%emt 0:00:11]} Nbd7 {[%emt 0:00:03]} 9. e4 {[%emt 0:00:28]} e5 {[%emt 0:00:30]} 10. dxe5 {[%emt 0:00:44]} Nxe5 {[%emt 0:00:03]} 11. Nxe5 {[%emt 0:00:03]} Bxe5 {[%emt 0:00:03]} 12. O-O {[%emt 0:00:16]} Bxg3 {[%emt 0:00:15]} 13. hxg3 {[%emt 0:00:03]} dxe4 {[%emt 0:00:05]} 14. Nxe4 {[%emt 0:00:03]} Nxe4 {[%emt 0:00:02]} 15. Bxe4 {[%emt 0:00:03]} Be6 {[%emt 0:00:05]} 16. Qf3 {[%emt 0:00:05]} Rad8 {[%emt 0:00:15]} 17. Bxb7 {[%emt 0:00:35]} Rb8 {[%emt 0:00:07]} 18. Bd5 {[%emt 0:00:04]} Bxd5 {[%emt 0:00:02]} 19. Qxd5 {[%emt 0:00:02]} Rxb2 {[%emt 0:00:02]} 20. Rab1 {[%emt 0:00:21]} Rb6 {[%emt 0:00:07]} 21. Rbd1 {[%emt 0:00:49]} g6 {[%emt 0:00:04]} 22. Rfe1 {[%emt 0:00:07]} Rfb8 {[%emt 0:00:17]} 23. Re5 {[%emt 0:01:48]} Kg7 {[%emt 0:00:57]} 24. Qxc5 {[%emt 0:00:40]} Qxc5 {[%emt 0:00:17]} 25. Rxc5 {[%emt 0:00:04]} Rb1 {[%emt 0:00:16]} 26. Rcd5 {[%emt 0:00:55]} R8b2 {[%emt 0:00:14]} 27. a4 {[%emt 0:00:03]} Rxd1+ {[%emt 0:00:32]} 28. Rxd1 {[%emt 0:00:04]} Ra2 {[%emt 0:00:09]} 29. Rd4 {[%emt 0:00:02]} h5 {[%emt 0:00:08]} 30. g4 {[%emt 0:00:15]} hxg4 {[%emt 0:00:13]} 31. Rxg4 {[%emt 0:00:03]} a5 {[%emt 0:00:05]} 32. g3 {[%emt 0:00:08]} Kf6 {[%emt 0:00:04]} 33. Kg2 {[%emt 0:00:28]} Ra3 {[%emt 0:00:11]} 34. Rc4 {[%emt 0:00:07]} Ke6 {[%emt 0:00:02]} 35. Kf3 {[%emt 0:02:12]} Kd5 {[%emt 0:00:10]} 36. Rc7 {[%emt 0:00:03]} Ke6 {[%emt 0:00:08]} 37. Rc6+ {[%emt 0:00:30]} Kd5 {[%emt 0:01:53]} 38. Rc7 {[%emt 0:00:03]} Ke6 {[%emt 0:00:03]} 39. Rc6+ {[%emt 0:00:20]} Kd5 {[%emt 0:00:02]} 40. Rc7 {[%emt 0:00:30]} 1/2-1/2